bitfinex/quotes_BTCUSD_20250408
["timestamp","ask_amount","ask_price","bid_price","bid_amount"]
[1744095440916,0.14796,79527.0,79524.0,0.012574]
[1744095441144,0.14796,79527.0,79522.0,0.264074]
[1744095441611,0.34,79526.0,79522.0,0.264074]
[1744095443042,0.34,79526.0,79523.0,0.012574]
[1744095444287,0.34,79526.0,79523.0,0.26407]
[1744095445695,0.34,79526.0,79523.0,0.012574]
[1744095446085,0.34,79526.0,79523.0,0.26407]
[1744095446275,0.34,79526.0,79524.0,0.251493]
[1744095446458,0.34,79526.0,79525.0,0.0540713]
[1744095446652,0.34,79526.0,79524.0,0.251493]
[1744095446873,0.34,79526.0,79523.0,0.26407]
[1744095447506,0.34,79526.0,79523.0,0.251496]
[1744095447709,0.34,79526.0,79522.0,0.012575]
[1744095448498,0.34,79526.0,79522.0,0.264074]
[1744095449312,0.34,79526.0,79523.0,0.264071]
[1744095450139,0.341,79526.0,79523.0,0.264071]
[1744095450327,0.34,79526.0,79523.0,0.264071]
[1744095450844,0.342,79526.0,79523.0,0.264071]
[1744095451171,0.341,79526.0,79523.0,0.264071]
[1744095451578,0.342,79526.0,79523.0,0.264071]
[1744095452586,0.342,79526.0,79525.0,0.251493]
[1744095452892,0.342,79526.0,79524.0,0.012574]
[1744095453091,0.342,79526.0,79525.0,0.264067]
[1744095453492,0.34,79526.0,79525.0,0.264067]
[1744095453941,0.342,79526.0,79525.0,0.012574]
[1744095454156,0.342,79526.0,79524.0,0.012574]
[1744095455003,0.341,79526.0,79524.0,0.012574]
[1744095455208,0.342,79526.0,79524.0,0.012574]
[1744095455388,0.341,79526.0,79524.0,0.264068]
[1744095455533,0.341,79526.0,79525.0,0.012574]
[1744095455734,0.342,79526.0,79525.0,0.012574]
[1744095456178,0.342,79526.0,79523.0,0.012574]
[1744095456375,0.342,79526.0,79522.0,0.264075]
[1744095456688,0.34,79526.0,79522.0,0.264075]
[1744095456843,0.342,79526.0,79522.0,0.264075]
[1744095457049,0.341,79526.0,79522.0,0.264075]
[1744095457274,0.34,79526.0,79522.0,0.264075]
[1744095457835,0.05005225,79525.0,79520.0,0.264083]
[1744095458011,0.593492,79526.0,79521.0,0.264078]
[1744095458151,0.03747885,79525.0,79521.0,0.012575]
[1744095459500,0.34,79524.0,79520.0,0.012575]
[1744095460015,0.34,79521.0,79517.0,0.264091]
[1744095460214,0.012575,79520.0,79516.0,0.0497]
[1744095460439,0.34,79519.0,79516.0,0.0497]
[1744095460927,0.03747935,79518.0,79516.0,0.0497]
[1744095461501,0.34,79521.0,79518.0,0.251512]
[1744095461663,0.34,79521.0,79518.0,0.264087]
[1744095462467,0.34,79522.0,79518.0,0.251515]
[1744095462910,0.34,79522.0,79514.0,0.012576]
[1744095462911,0.352576,79515.0,79510.0,0.251538]
[1744095463119,0.251533,79513.0,79507.0,0.300247]
[1744095463289,0.012576,79512.0,79507.0,0.312824]
[1744095463891,0.012576,79512.0,79504.0,0.264133]
[1744095463892,0.012577,79510.0,79504.0,0.264133]
[1744095464099,0.34,79508.0,79507.0,0.012577]
[1744095465277,0.34,79508.0,79507.0,0.060877]
[1744095466383,0.33966678,79508.0,79507.0,0.060877]
[1744095467464,0.33966678,79508.0,79507.0,0.012577]
[1744095470010,0.33966678,79508.0,79506.0,0.012577]
[1744095470216,0.33966678,79508.0,79507.0,0.25155]
[1744095470773,0.33966678,79508.0,79507.0,0.264127]
[1744095471353,0.14592,79508.0,79506.0,0.264127]
[1744095471559,0.14592,79508.0,79505.0,0.251556]
[1744095471786,0.14592,79508.0,79506.0,0.012577]
[1744095473428,0.34,79507.0,79506.0,0.264127]
[1744095475411,0.34,79507.0,79506.0,0.012577]
[1744095475615,0.14592,79508.0,79506.0,0.012577]
[1744095475821,0.14592,79508.0,79504.0,0.012577]
[1744095476043,0.158497,79508.0,79503.0,0.251562]
[1744095476333,0.158497,79508.0,79503.0,0.26414]
[1744095476912,0.14592,79508.0,79504.0,0.012577]
[1744095477482,0.14592,79508.0,79504.0,0.264134]
[1744095477683,0.012577,79505.0,79499.0,0.012578]
[1744095477887,0.251581,79497.0,79489.0,0.0473]
[1744095478095,0.61870785,79495.0,79494.0,4.201e-05]
[1744095479185,0.66700449,79495.0,79494.0,4.201e-05]
[1744095479381,0.79639319,79495.0,79494.0,4.201e-05]
[1744095479685,0.89739319,79495.0,79494.0,4.201e-05]
[1744095479889,0.94719319,79495.0,79494.0,4.201e-05]
[1744095480207,0.94619319,79495.0,79494.0,4.201e-05]
[1744095480403,0.94919319,79495.0,79494.0,4.201e-05]
[1744095480715,0.95019319,79495.0,79494.0,4.201e-05]
[1744095480904,0.94719319,79495.0,79494.0,4.201e-05]
[1744095481079,0.95119319,79495.0,79494.0,0.00104201]
[1744095481288,1.08059864,79495.0,79494.0,0.00104201]
[1744095481499,0.95119319,79495.0,79494.0,0.00104201]
[1744095482406,0.95019319,79495.0,79494.0,0.00104201]
[1744095482607,0.95119319,79495.0,79494.0,0.00104201]
[1744095483283,1.23796247,79495.0,79494.0,0.00104201]
[1744095483451,0.97160713,79495.0,79494.0,0.00104201]
[1744095483660,0.98418613,79495.0,79494.0,0.00104201]
[1744095484004,1.23577413,79495.0,79494.0,0.00104201]
[1744095489102,0.05329664,79495.0,79494.0,0.00104201]
[1744095489314,0.42041649,79495.0,79494.0,0.00104201]
[1744095492221,0.77109504,79495.0,79494.0,0.00104201]
[1744095492633,0.34,79487.0,79483.0,0.264204]
[1744095492832,0.34,79485.0,79483.0,0.25948715]
[1744095493214,0.34,79485.0,79481.0,0.31561]
[1744095494350,0.001,79487.0,79486.0,0.309996]
[1744095494572,0.001,79487.0,79486.0,0.58853171]
[1744095494966,0.3149454,79500.0,79498.0,0.264156]
[1744095495169,0.14592,79500.0,79499.0,0.0458]
[1744095495373,0.14592,79500.0,79499.0,0.309953]
[1744095495529,0.14592,79500.0,79495.0,0.251585]
[1744095495729,0.14592,79500.0,79495.0,0.264164]
[1744095495930,0.14592,79500.0,79497.0,0.012579]
[1744095496328,0.14892,79500.0,79499.0,0.012578]
[1744095496754,0.14892,79500.0,79499.0,0.0737633]
[1744095496950,0.14592,79500.0,79499.0,0.012578]
[1744095497153,0.14992,79500.0,79499.0,0.012578]
[1744095497355,0.003,79500.0,79499.0,0.107778]
[1744095497698,0.004,79500.0,79499.0,0.11029345]
[1744095497839,0.004,79500.0,79499.0,0.107778]
[1744095498039,0.004,79500.0,79499.0,0.1990614]
[1744095498344,0.004,79500.0,79499.0,0.107778]
[1744095498540,0.001,79500.0,79499.0,0.107778]
[1744095498845,0.002,79500.0,79499.0,0.107778]
[1744095499254,0.002,79500.0,79499.0,0.111778]
[1744095499454,0.1690254,79508.0,79507.0,0.012577]
[1744095499658,0.34,79509.0,79508.0,0.012577]
[1744095502509,0.34,79509.0,79505.0,0.25950415]
[1744095502714,0.34,79509.0,79505.0,0.25135724]
[1744095503247,0.34,79509.0,79507.0,0.251549]
[1744095503683,0.34,79509.0,79507.0,0.264126]
[1744095504318,0.34,79509.0,79508.0,0.012577]
[1744095505175,0.34,79509.0,79506.0,0.264129]
[1744095505772,0.34,79509.0,79507.0,0.264124]
[1744095506022,0.34,79509.0,79504.0,0.264133]
[1744095506611,0.34,79509.0,79506.0,0.264128]
[1744095506916,0.34,79509.0,79505.0,0.012577]
[1744095507119,0.34,79509.0,79506.0,0.251553]
[1744095507293,0.35654085,79509.0,79508.0,0.012577]
[1744095507845,0.342,79509.0,79508.0,0.066661]
[1744095508373,0.342,79509.0,79508.0,0.012577]
[1744095508777,0.34,79509.0,79508.0,0.012577]
[1744095509118,0.342,79509.0,79508.0,0.012577]
[1744095509482,0.34,79509.0,79508.0,0.012577]
[1744095509908,0.342,79509.0,79508.0,0.012577]
[1744095510607,0.342,79509.0,79508.0,0.0918157]
[1744095511158,0.342,79509.0,79508.0,0.012577]
[1744095517165,0.342,79509.0,79508.0,0.058577]
[1744095517501,0.000336,79527.0,79520.0,0.264084]
[1744095517758,3.1e-07,79532.0,79530.0,0.35665]
[1744095517990,3.1e-07,79532.0,79531.0,0.20780478]
[1744095518196,5.1e-07,79537.0,79536.0,0.26403]
[1744095518369,5.1e-07,79537.0,79536.0,0.3934187]
[1744095518900,0.00042164,79537.0,79536.0,0.3934187]
[1744095519482,8.4e-07,79541.0,79540.0,0.264017]
[1744095519684,7e-08,79541.0,79540.0,0.51232119]
[1744095520088,7e-08,79541.0,79540.0,0.55832119]
[1744095520551,6.7e-07,79546.0,79543.0,0.251436]
[1744095520690,6.7e-07,79546.0,79545.0,0.264001]
[1744095520872,6.7e-07,79546.0,79545.0,0.3933897]
[1744095521085,6.7e-07,79546.0,79545.0,0.48423892]
[1744095521286,6.7e-07,79546.0,79545.0,0.7009629]
[1744095522333,6.7e-07,79546.0,79545.0,0.7029629]
[1744095522866,6.7e-07,79546.0,79545.0,0.7009629]
[1744095523064,6.7e-07,79546.0,79545.0,0.7079629]
[1744095523355,6.7e-07,79546.0,79545.0,0.7149629]
[1744095523558,0.34,79557.0,79556.0,0.263964]
[1744095525590,0.34,79557.0,79556.0,0.265964]
[1744095525934,0.34,79557.0,79556.0,0.267964]
[1744095527904,0.38413356,79557.0,79556.0,0.267964]
[1744095528807,0.04413356,79557.0,79556.0,0.3973527]
[1744095529011,0.04413356,79557.0,79556.0,0.4428527]
[1744095529214,0.0003362,79566.0,79558.0,0.012569]
[1744095529503,0.0003362,79566.0,79558.0,0.14447127]
[1744095531087,0.0003362,79566.0,79558.0,0.1419577]
[1744095531844,0.0003362,79566.0,79558.0,0.1459577]
[1744095532363,0.0003362,79566.0,79558.0,0.016569]
[1744095533005,0.04628903,79559.0,79558.0,0.267957]
[1744095533413,0.04628903,79559.0,79558.0,0.265957]
[1744095533771,0.04628903,79559.0,79558.0,0.263957]
[1744095533969,0.04628903,79559.0,79558.0,0.264957]
[1744095534823,0.04628903,79559.0,79558.0,0.265957]
[1744095537199,0.04628903,79559.0,79558.0,0.3704857]
[1744095537319,0.04628903,79559.0,79558.0,0.265957]
[1744095538121,0.04628903,79559.0,79558.0,0.3953457]
[1744095539268,0.04628903,79559.0,79558.0,0.38951241]
[1744095540386,0.04628903,79559.0,79558.0,0.26012371]
[1744095543208,0.53196903,79559.0,79558.0,0.26012371]
[1744095546487,0.38628903,79559.0,79558.0,0.26012371]
[1744095546686,0.65024303,79559.0,79538.0,0.0484]
[1744095546881,0.34,79545.0,79539.0,0.012572]
[1744095547220,0.48568,79544.0,79543.0,0.012571]
[1744095547641,0.48568,79544.0,79543.0,0.264007]
[1744095548592,0.012571,79542.0,79536.0,0.012572]
[1744095548787,0.012571,79542.0,79534.0,0.264037]
[1744095548788,0.34,79541.0,79534.0,0.264037]
[1744095548995,0.34,79541.0,79537.0,0.251455]
[1744095549830,0.34,79541.0,79537.0,0.264027]
[1744095550631,0.34,79542.0,79537.0,0.264027]
[1744095550831,0.001,79541.0,79539.0,0.251448]
[1744095551280,0.002,79541.0,79539.0,0.251448]
[1744095551488,0.001,79541.0,79539.0,0.251448]
[1744095552070,0.34,79543.0,79539.0,0.251448]
[1744095552908,0.001,79541.0,79539.0,0.26402]
[1744095554979,0.002,79541.0,79539.0,0.26402]
[1744095556303,0.34,79534.0,79533.0,0.00012623]
[1744095557544,0.34,79534.0,79533.0,0.00212623]
[1744095558121,0.34,79534.0,79533.0,0.00412623]
[1744095558527,0.591464,79534.0,79533.0,0.00412623]
[1744095558730,0.604037,79534.0,79533.0,0.00412623]
[1744095559829,0.604037,79534.0,79533.0,0.00212623]
[1744095560008,0.605037,79534.0,79533.0,0.00212623]
[1744095560412,0.605037,79534.0,79533.0,0.00012623]
[1744095560613,0.606037,79534.0,79533.0,0.00012623]
[1744095562020,0.354573,79534.0,79533.0,0.00012623]
[1744095564512,0.342,79534.0,79533.0,0.25159323]
[1744095564655,0.342,79534.0,79533.0,0.26416623]
[1744095565890,0.002,79534.0,79533.0,0.26416623]
[1744095566281,0.001,79534.0,79533.0,0.26416623]
[1744095566613,0.1690254,79543.0,79539.0,0.251447]
[1744095566760,0.1690254,79543.0,79539.0,0.264019]
[1744095567417,0.012572,79539.0,79533.0,0.26416623]
[1744095567748,0.251458,79536.0,79533.0,0.00012623]
[1744095567894,0.264037,79534.0,79533.0,0.00012623]
[1744095568950,0.14572,79535.0,79533.0,0.00012623]
[1744095570037,0.14572,79535.0,79533.0,0.25159023]
[1744095570435,0.14672,79535.0,79533.0,0.25159023]
[1744095570779,0.14672,79535.0,79533.0,0.01269923]
[1744095570931,0.14772,79535.0,79533.0,0.01269923]
[1744095571736,0.34,79534.0,79533.0,0.01269923]
[1744095572490,0.34,79534.0,79533.0,0.09533312]
[1744095572628,0.34,79534.0,79533.0,0.01269923]
[1744095572833,0.341,79534.0,79533.0,0.01269923]
[1744095573030,0.001,79534.0,79533.0,0.01269923]
[1744095573344,0.14568,79534.0,79533.0,0.01269923]
[1744095574278,0.14568,79534.0,79533.0,0.05779923]
[1744095574573,0.14568,79534.0,79533.0,0.10489923]
[1744095576381,0.14568,79534.0,79533.0,0.01269923]
[1744095582315,0.48568,79534.0,79533.0,0.01269923]
[1744095582818,0.48568,79534.0,79533.0,0.01369923]
[1744095583135,0.34,79534.0,79533.0,0.01469923]
[1744095583334,0.48568,79534.0,79533.0,0.01469923]
[1744095585740,0.48568,79534.0,79533.0,0.00212623]
[1744095585960,0.498253,79534.0,79533.0,0.00212623]
[1744095586123,0.75337302,79534.0,79533.0,0.00212623]
[1744095586354,0.80165387,79534.0,79533.0,0.00212623]
[1744095586528,0.34,79525.0,79520.0,0.012575]
[1744095586683,0.34,79525.0,79523.0,0.251499]
[1744095587225,0.34,79525.0,79524.0,0.012574]
[1744095587790,0.35454085,79531.0,79525.0,0.264067]
[1744095587992,0.03748167,79530.0,79525.0,0.264067]
[1744095588597,0.03748167,79530.0,79526.0,0.264061]
[1744095589343,0.03848167,79530.0,79525.0,0.264067]
[1744095589549,0.01454085,79527.0,79524.0,0.012574]
[1744095589720,0.01454085,79527.0,79526.0,0.012574]
[1744095590524,0.01454085,79531.0,79526.0,0.012574]
[1744095590730,0.01454085,79529.0,79526.0,0.012574]
[1744095591120,0.35454085,79529.0,79524.0,0.013574]
[1744095591529,0.35454085,79529.0,79524.0,0.012574]
[1744095591852,0.35454085,79529.0,79524.0,0.264067]
[1744095592812,0.35454085,79529.0,79526.0,0.001]
[1744095593012,0.35454085,79529.0,79524.0,0.264067]
[1744095593218,0.60602385,79529.0,79524.0,0.012574]
[1744095593434,0.36711485,79529.0,79524.0,0.012574]
[1744095593629,0.61859785,79529.0,79524.0,0.012574]
[1744095593878,0.01454085,79527.0,79523.0,0.264073]
[1744095594077,0.01454085,79527.0,79524.0,0.264067]
[1744095594539,0.01454085,79528.0,79524.0,0.264067]
[1744095594744,0.01454085,79528.0,79524.0,0.012574]
[1744095595265,0.01454085,79528.0,79492.0,0.000168]
[1744095595266,0.35454085,79524.0,79510.0,0.251539]
[1744095595403,0.34,79520.0,79518.0,0.264087]
[1744095595600,0.48568,79519.0,79518.0,0.264087]
[1744095595982,0.48568,79519.0,79518.0,0.3433155]
[1744095596432,0.48568,79519.0,79518.0,0.264087]
[1744095596744,0.48568,79519.0,79518.0,0.267087]
[1744095598047,0.48568,79519.0,79518.0,0.270087]
[1744095599891,0.48568,79519.0,79518.0,0.4934757]
[1744095600267,0.48568,79519.0,79518.0,0.364087]
[1744095600468,0.54878885,79519.0,79518.0,0.006]
[1744095600667,0.54878885,79519.0,79510.0,0.264117]
[1744095600668,0.012575,79517.0,79511.0,0.012744]
[1744095600875,0.34,79504.0,79498.0,0.012578]
[1744095601212,0.34,79504.0,79479.0,0.0001679]
[1744095601213,0.012579,79494.0,79486.0,0.094]
[1744095601402,0.35454085,79502.0,79492.0,0.251597]
[1744095601403,0.35454085,79493.0,79492.0,0.251597]
[1744095601760,0.35454085,79493.0,79492.0,0.264176]
[1744095602195,0.40579387,79493.0,79492.0,0.251597]
[1744095602496,0.05125302,79493.0,79492.0,0.26459713]
[1744095602670,0.34,79499.0,79498.0,0.264156]
[1744095602877,0.34,79499.0,79496.0,0.251582]
[1744095603078,0.012578,79498.0,79474.0,0.0001679]
[1744095603288,0.34,79491.0,79484.0,0.012581]
[1744095603484,0.34,79491.0,79485.0,0.01258]
[1744095603783,0.01258,79490.0,79481.0,0.00208466]
[1744095603953,0.48564,79489.0,79484.0,0.251622]
[1744095604355,0.48564,79489.0,79487.0,0.264193]
[1744095604550,0.48564,79489.0,79488.0,0.01258]
[1744095605836,0.48564,79489.0,79486.0,0.01258]
[1744095606055,0.48564,79489.0,79487.0,0.251613]
[1744095606256,0.14564,79489.0,79487.0,0.264193]
[1744095606458,0.14564,79489.0,79483.0,0.251626]
[1744095606683,0.14564,79489.0,79484.0,0.012581]
[1744095607204,0.01258,79485.0,79481.0,0.00208466]
[1744095607391,0.012581,79482.0,79481.0,0.00208466]
[1744095607705,0.27875085,79482.0,79481.0,0.00208466]
[1744095608385,0.61875085,79482.0,79481.0,0.00208466]
[1744095608691,0.73882211,79482.0,79481.0,0.00208466]
[1744095608834,0.73882211,79482.0,79481.0,0.00308466]
[1744095609272,0.74382211,79482.0,79481.0,0.00308466]
[1744095609481,0.97029166,79482.0,79481.0,0.00208466]
[1744095609864,0.97529166,79482.0,79481.0,0.00208466]
[1744095610956,0.61875685,79480.0,79479.0,0.0001679]
[1744095611166,0.604302,79454.0,79453.0,0.0001681]
[1744095611369,1.89147155,79454.0,79453.0,0.0001681]
[1744095611609,1.89147155,79454.0,79453.0,0.00026879]
[1744095611813,1.93245335,79454.0,79453.0,0.00026879]
[1744095612168,1.76208285,79454.0,79453.0,0.00026879]
[1744095612386,1.8123637,79454.0,79453.0,0.00026879]
[1744095612793,1.8103637,79454.0,79453.0,0.00026879]
[1744095612991,1.8153637,79454.0,79453.0,0.00026879]
[1744095613234,1.8193637,79454.0,79453.0,0.00026879]
[1744095613612,1.9487524,79454.0,79453.0,0.00026879]
[1744095614331,2.07815785,79454.0,79453.0,0.00026879]
[1744095615259,2.07815813,79454.0,79453.0,0.00026879]
[1744095615456,1.94875268,79454.0,79453.0,0.00026879]
[1744095618589,1.68445068,79454.0,79453.0,0.00026879]
[1744095618989,1.94879268,79454.0,79453.0,0.00026879]
[1744095620935,1.99749268,79454.0,79453.0,0.00026879]
[1744095621112,2.12689813,79454.0,79453.0,0.00026879]
[1744095621983,2.16172826,79454.0,79453.0,0.00026879]
[1744095622377,2.12689813,79454.0,79453.0,0.00026879]
[1744095623032,1.99749268,79454.0,79453.0,0.00026879]
[1744095623235,1.68449068,79454.0,79453.0,0.00026879]
[1744095623410,1.60879268,79454.0,79453.0,0.00026879]
[1744095623618,1.94879268,79454.0,79453.0,0.00026879]
[1744095623956,1.60479268,79454.0,79453.0,0.00026879]
[1744095624248,1.95279268,79454.0,79453.0,0.00126879]
[1744095624551,1.94779268,79454.0,79453.0,0.00126879]
[1744095624923,1.93979268,79454.0,79453.0,0.00026879]
[1744095625145,1.94579268,79454.0,79453.0,0.00226879]
[1744095625352,1.82140398,79454.0,79453.0,0.00226879]
[1744095625551,1.53656113,79454.0,79453.0,0.01285479]
[1744095625760,1.55110198,79454.0,79453.0,0.00026879]
[1744095625963,1.55510198,79454.0,79453.0,0.00026879]
[1744095626315,1.56010198,79454.0,79453.0,0.00026879]
[1744095626651,1.54556113,79454.0,79453.0,0.00026879]
[1744095626836,1.55814585,79454.0,79453.0,0.00026879]
[1744095627032,1.5726867,79454.0,79453.0,0.00026879]
[1744095627228,1.5601017,79454.0,79453.0,0.00026879]
[1744095627424,1.5726867,79454.0,79453.0,0.00026879]
[1744095627663,1.5636867,79454.0,79453.0,0.00026879]
[1744095628000,1.5501017,79454.0,79453.0,0.00026879]
[1744095628154,1.5541017,79454.0,79453.0,0.00026879]
[1744095628764,1.5461017,79454.0,79453.0,0.00026879]
[1744095629171,1.8164037,79454.0,79453.0,0.00026879]
[1744095630861,1.5521017,79454.0,79453.0,0.00026879]
[1744095631263,1.8164037,79454.0,79453.0,0.00026879]
[1744095632101,1.5521017,79454.0,79453.0,0.00026879]
[1744095632336,1.5646867,79454.0,79453.0,0.00026879]
[1744095632542,1.5521017,79454.0,79453.0,0.25198979]
[1744095632747,1.5521017,79454.0,79453.0,0.00026879]
[1744095634331,1.5491017,79454.0,79453.0,0.00026879]
[1744095634504,1.5461017,79454.0,79453.0,0.25198979]
[1744095634707,1.5461017,79454.0,79453.0,0.00026879]
[1744095634708,1.5471017,79454.0,79453.0,0.00026879]
[1744095634884,1.5491017,79454.0,79453.0,0.00026879]
[1744095638524,1.19456085,79454.0,79453.0,0.37008267]
[1744095638702,0.1690254,79470.0,79453.0,0.53538537]
[1744095638908,0.99812,79474.0,79473.0,0.312739]
[1744095638909,1.14388,79474.0,79473.0,0.312739]
[1744095639160,1.14388,79474.0,79473.0,0.3766865]
[1744095639571,1.48388,79474.0,79473.0,0.312739]
[1744095639828,1.14388,79474.0,79473.0,0.312739]
[1744095640221,1.48388,79474.0,79473.0,0.312739]
[1744095640781,1.48388,79474.0,79473.0,0.0485]
[1744095640983,0.34,79473.0,79471.0,0.012583]
[1744095641218,0.34,79473.0,79471.0,0.264246]
[1744095641628,0.34,79473.0,79472.0,0.012583]
[1744095641832,0.34,79473.0,79469.0,0.301568]
[1744095641974,0.34,79473.0,79472.0,0.012583]
[1744095643813,0.34,79473.0,79469.0,0.0499]
[1744095643976,0.34,79473.0,79472.0,0.001]
[1744095644435,0.36712285,79473.0,79472.0,0.001]
[1744095647249,0.36712285,79473.0,79472.0,0.002]
[1744095647950,0.34,79473.0,79472.0,0.266243]
[1744095648553,0.48576,79473.0,79472.0,0.266243]
[1744095651396,0.34,79473.0,79472.0,0.312743]
[1744095651621,0.1690254,79490.0,79488.0,0.26419]
[1744095651825,0.14572,79489.0,79488.0,0.26419]
[1744095652029,0.14572,79489.0,79481.0,0.26421]
[1744095652235,0.34,79485.0,79480.0,0.012581]
[1744095652437,0.34,79485.0,79484.0,0.012581]
[1744095652574,0.34,79485.0,79483.0,0.012581]
[1744095652936,0.34,79485.0,79484.0,0.012581]
[1744095653278,0.14572,79489.0,79486.0,0.01258]
[1744095653479,0.14572,79489.0,79488.0,0.26519]
[1744095653679,0.14572,79489.0,79488.0,0.26619]
[1744095653925,0.14572,79489.0,79488.0,0.26519]
[1744095654132,0.14572,79489.0,79488.0,0.3448064]
[1744095654275,0.14572,79489.0,79488.0,0.3942064]
[1744095654475,0.48572,79489.0,79488.0,0.3942064]
[1744095654898,0.14672,79489.0,79488.0,0.3942064]
[1744095655113,0.14672,79489.0,79488.0,0.4407064]
[1744095655336,0.14772,79489.0,79488.0,0.4407064]
[1744095655538,0.002,79489.0,79488.0,0.4894787]
[1744095656323,1e-06,79489.0,79488.0,0.4894787]
[1744095656520,0.14572,79503.0,79502.0,0.313143]
[1744095656724,0.14584612,79503.0,79502.0,0.313143]
[1744095656937,0.14584612,79503.0,79502.0,0.5518344]
[1744095657577,0.14584612,79503.0,79502.0,0.251565]
[1744095657802,0.14584612,79503.0,79502.0,0.005]
[1744095657976,0.48584612,79503.0,79502.0,0.005]
[1744095658200,0.48584612,79503.0,79502.0,0.004]
[1744095658562,0.48584612,79503.0,79502.0,0.008]
[1744095659365,0.48584612,79503.0,79502.0,0.004]
[1744095659592,0.48584612,79503.0,79502.0,0.008]
[1744095659790,0.48584612,79503.0,79502.0,0.004]
[1744095660002,0.34,79502.0,79498.0,0.012578]
[1744095660460,0.34,79502.0,79496.0,0.012579]
[1744095660661,0.352578,79500.0,79495.0,0.264166]
[1744095660796,0.34,79497.0,79494.0,0.012579]
[1744095661138,0.34,79498.0,79497.0,0.251581]
[1744095661284,0.34,79498.0,79497.0,0.26416]
[1744095661478,0.34,79498.0,79494.0,0.012579]
[1744095661679,0.34,79493.0,79491.0,0.264179]
[1744095661967,0.34,79493.0,79492.0,0.012579]
[1744095662977,0.341,79502.0,79500.0,0.012578]
[1744095663145,0.34,79502.0,79501.0,0.264147]
[1744095663776,0.34,79502.0,79501.0,0.313147]
[1744095663925,0.0003364,79504.0,79502.0,0.012578]
[1744095664273,0.00012612,79503.0,79502.0,0.1419667]
[1744095664483,0.00012612,79503.0,79499.0,0.0499]
[1744095664648,0.264148,79501.0,79491.0,0.01258]
[1744095664854,0.34,79500.0,79494.0,0.012579]
[1744095665251,0.34,79500.0,79499.0,0.012578]
[1744095665455,0.34,79500.0,79499.0,0.0440262]
[1744095665675,0.34,79500.0,79499.0,0.012578]
[1744095665889,0.001,79502.0,79501.0,0.012578]
[1744095666464,0.00012612,79503.0,79502.0,0.264143]
[1744095669866,0.00012612,79503.0,79502.0,0.265143]
[1744095670095,0.00012612,79503.0,79502.0,0.266143]
[1744095671722,0.00012612,79503.0,79502.0,0.002]
[1744095671950,0.00012612,79503.0,79502.0,0.266143]
[1744095672353,0.00012612,79503.0,79502.0,0.002]
[1744095672354,0.01270412,79503.0,79502.0,0.002]
[1744095672568,0.02355195,79503.0,79502.0,0.002]
[1744095672760,0.02355195,79503.0,79502.0,0.001]
[1744095672929,0.02555195,79503.0,79502.0,0.001]
[1744095673338,0.02555195,79503.0,79499.0,0.012578]
[1744095673559,0.02555195,79503.0,79500.0,0.26415]
[1744095673759,0.03513999,79502.0,79500.0,0.26415]
[1744095674350,0.02342583,79501.0,79499.0,0.012578]
[1744095674760,0.34112612,79503.0,79500.0,0.26415]
[1744095675110,0.35370412,79503.0,79498.0,0.264155]
[1744095675304,0.34112612,79503.0,79499.0,0.012578]
[1744095675661,0.00012612,79503.0,79499.0,0.012578]
[1744095676090,0.001,79502.0,79500.0,0.26415]
[1744095676265,0.001,79502.0,79501.0,0.19168243]
[1744095676471,1.2e-07,79503.0,79502.0,0.264143]
[1744095676679,0.0003364,79504.0,79503.0,0.012578]
[1744095676879,0.0003364,79504.0,79503.0,0.46566888]
[1744095678113,8e-07,79505.0,79504.0,0.311336]
[1744095678319,8e-07,79505.0,79504.0,0.66004868]
[1744095679532,0.1464,79525.0,79524.0,0.35897]
[1744095679748,0.1464,79525.0,79524.0,0.5519212]
[1744095679965,0.002,79529.0,79528.0,0.264057]
[1744095680180,0.00212626,79529.0,79528.0,0.3934457]
[1744095681670,0.14636,79538.0,79537.0,0.264027]
[1744095681869,0.012572,79536.0,79527.0,0.012574]
[1744095682209,0.012573,79530.0,79524.0,0.012574]
[1744095682343,0.251467,79534.0,79528.0,0.016574]
[1744095682542,0.01454085,79536.0,79531.0,0.012573]
[1744095682771,0.16944617,79537.0,79535.0,0.251461]
[1744095682942,0.00042077,79537.0,79536.0,0.0641225]
[1744095683552,0.34042077,79537.0,79536.0,0.0641225]
[1744095683756,0.48678077,79537.0,79536.0,0.0641225]
[1744095683982,0.48878077,79537.0,79536.0,0.0641225]
[1744095684977,0.48878077,79537.0,79535.0,0.264034]
[1744095685375,0.48978077,79537.0,79535.0,0.264034]
[1744095685603,0.48978077,79537.0,79536.0,0.012572]
[1744095685804,0.48678077,79537.0,79536.0,0.012572]
[1744095686118,0.48678077,79537.0,79536.0,0.014572]
[1744095686278,0.48678077,79537.0,79536.0,0.0954986]
[1744095686708,0.48678077,79537.0,79536.0,0.0944986]
[1744095686917,0.14678077,79537.0,79536.0,0.0944986]
[1744095687079,0.14678077,79537.0,79536.0,0.2748873]
[1744095687423,0.14678077,79537.0,79536.0,0.2758873]
[1744095687784,0.14678077,79537.0,79536.0,0.015572]
[1744095689143,0.14678077,79537.0,79536.0,0.013572]
[1744095689896,0.14678077,79537.0,79536.0,0.014572]
[1744095690120,0.14678077,79537.0,79536.0,0.013572]
[1744095690333,0.14678077,79537.0,79536.0,0.014572]
[1744095690539,0.00042077,79537.0,79536.0,0.014572]
[1744095691915,0.34042077,79537.0,79536.0,0.002]
[1744095692529,0.34042077,79537.0,79536.0,0.0952408]
[1744095692934,0.34042077,79537.0,79536.0,0.014572]
[1744095694497,0.34042077,79537.0,79536.0,0.1893607]
[1744095694909,0.33531618,79537.0,79536.0,0.1893607]
[1744095696071,0.33531618,79537.0,79536.0,0.2360607]
[1744095699582,0.14996,79541.0,79540.0,0.012572]
[1744095699779,0.48996,79541.0,79540.0,0.24334409]
[1744095700197,0.48996,79541.0,79540.0,0.49478909]
[1744095701020,0.34,79541.0,79540.0,0.49478909]
[1744095701223,0.34,79551.0,79543.0,0.264007]
[1744095701571,0.1502964,79552.0,79543.0,0.3933957]